Workbook

Sheet Notes
A1: These component simulations were created by the Office of Accountability in the Spring of 2023. If you have any questions or would like to report an error, then please contact us at Accountability@education.ohio.gov. The sheets are all protected, but if you wish to make changes you can unlock them by going to "Review" and clicking "Unprotect Sheet." There is no password.
A3: Update Notes | B3: Date
A5: Updated Resource Links to 2023 technical documentation | B5: 2023-10-05
A6: Updated maximum PI scores in Achievement tab | B6: 2023-10-14
A7: Added Overall Tab | B7: 2023-12-26
A8: Added Hover Notes | B8: 2023-12-26
A9: Updated maximum PI scores in Achievement tab and technical document links | B9: 2024-09-17
A10: Created CCWMR | B10: 2025-03-31
A11: Added loading buttons to Overall, updated conditional applicable cells in Gap Closing and Overall, added conditional colors to overall tab for points | B11: 2025-04-01
A12: Added clear button to Gap Closing, created CCWMR sections, fixed graduation when one rate is not present | B12: 2025-04-02
A13: Updated component ratings to incorporate "Not Rated", added applicable buttons to Gap Closing | B13: 2025-04-16
A14: Changed IFS function to nested IF/AND in Early Literacy due to compatibilty issues with older versions of Excel | B14: 2025-07-28
A15: Fixed Gap Closing point assignment error in Overall tab, updated rounding functions for CCWMR and Achievement, added clear button to Overall tab | B15: 2025-07-29
A16: Updated Maximum PI scores in Achievement tab for 2024-2025 report cards | B16: 2025-10-07

Sheet Achievement
A1: How To Use This Simulator:
A2: To use this simulator. Enter your component measure percentages in the input boxes below (outlined in red).
A3: Select the "School" or "District" PI type to ensure the correct percentage is calculated.
A5: Performance Index Inputs | E5: Performance Index | I5: Component Rating
A7: Input % of Students in Each Achievement Level
A8: Achievement Level | B8: % of Students | C8: Points for this Level | D8: Points Received
A9: Advanced Plus | C9: 1.3 | D9: =B9*C9 -> 0 | F9: Performance Index: | G9: =IF(OR(B16>100),"% is not 100",SUM(D9:D15)) -> 0
A10: Advanced | C10: 1.2 | D10: =B10*C10 -> 0
A11: Accomplished | C11: 1.1 | D11: 0 | J11: Score Range | M11: Stars
A12: Proficient | C12: 1 | D12: 0 | J12: 0 | K12: to | L12: 0.5 | M12: 1 Star
A13: Basic | C13: 0.6 | D13: 0 | F13: The Performance Index is divided by the Max PI to find the Percent | J13: 0.5 | K13: to | L13: 0.7 | M13: 2 Stars
A14: Limited | C14: 0.3 | D14: 0 | F14: Max PI District 2025 | G14: 109.8 | J14: 0.7 | K14: to | L14: 0.8 | M14: 3 Stars
A15: Untested | C15: 0 | D15: 0 | F15: Max PI Building 2025 | G15: 111.3 | J15: 0.8 | K15: to | L15: 0.9 | M15: 4 Stars
A16: Total % | B16: =SUM(B9:B15) -> 0 | F16: Performance Index Percent: | G16: =IF(B18="District", ROUND(G9/G14,3), ROUND(G9/G15,3)) -> 0 | J16: 0.9 | K16: to | L16: 100%+ | M16: 5 Stars
A18: Select PI Type | B18: District
J21: Achievement Component Rating | O21: =IF(AND(G16>=J16,B16<>0),"5 Stars",IF(AND(G16>=J15,G16<L15,B16<>0),"4 Stars",IF(AND(G16>=J14,G16<L14,B16<>0),"3 Stars",IF(AND(G16>=J13,G16<L13,B16<>0),"2 Stars",IF(AND(G16<L12,B16<>0),"1 Star",IF(B16=0,"Not Rated","Error")))))) -> Not Rated
F23: *The Performance Indicators are report only and do not contribute to the component rating
A30: Technical Document
A31: Report Card Resources

Sheet Progress
A1: How To Use This Simulator:
A2: To use this simulator. Enter your growth index and effect size in the input boxes below (outlined in red).
A4: Value-Added Inputs | E4: Component Rating
A6: Select Value-Added Type
A7: District | G7: =A7 -> District | I7: Criteria
F8: Growth Index | I8: Effect Size | L8: Stars
A9: Input Value-Added Growth Index and Effect Size | F9: - | G9: to | H9: -2 | I9: - | J9: to | K9: =IF(A7="District",-0.1,-0.2) -> -0.1 | L9: 1 Star
A10: Growth Index | F10: - | G10: to | H10: -2 | I10: =IF(A7="District",-0.1,-0.2) -> -0.1 | J10: to | K10: - | L10: 2 Stars
A11: Effect Size | F11: -2 | G11: to | H11: 2 | I11: - | J11: to | K11: - | L11: 3 Stars
F12: 2 | G12: to | H12: - | I12: - | J12: to | K12: =IF(A7="District", 0.1,0.2) -> 0.1 | L12: 4 Stars
F13: 2 | G13: to | H13: - | I13: =IF(A7="District",0.1,0.2) -> 0.1 | J13: to | K13: - | L13: 5 Stars
F16: Progress Component Rating | J16: =IF(AND(B10<H9,B11<K9,B10<>"",B11<>""),L9,IF(AND(B10<H10,B11>=I10,B10<>"",B11<>""),L10,IF(AND(B10>=F11,B10<H11,B10<>"",B11<>""),L11,IF(AND(B10>=F12,B11<K12,B10<>"",B11<>""),L12,IF(AND(B10>=F13,B11>=I13,B10<>"",B11<>""),L13,IF(AND(B10="",B11=""),"Not Rated","Error")))))) -> Not Rated
A20: Technical Document
A21: Report Card Resources

Sheet Gap Closing
A1: How To Use This Simulator:
A2: To use this simulator. Enter your gap closing measure data in the input boxes below (outlined in red).
A3: The applicable option will include/remove the measure from the calculation by selecting "Yes" or "No" | D3: SELECT YEAR | E3: 2024-2025
A5: Component Measure Inputs | D5: Goals | E5: Points | G5: Point Totals | N5: Component Rating
A6: Chronic Absenteeism Measure | B6: Applicable | C6: Chronic Absenteeism Percent | D6: =E3 -> 2024-2025 | E6: Points | F6: Points Possible
A7: Chronic Absenteeism Indicator | B7: No | D7: =IF(E3="2021-2022",0.221,IF(E3="2022-2023",0.202,IF(E3="2023-2024",0.183,IF(E3="2024-2025",0.164,IF(E3="2025-2026",0.145,IF(E3="2026-2027",0.126,IF(E3="2027-2028",0.107,IF(E3="2028-2029",0.088,IF(E3="2029-2030",0.069, IF(E3="2030-2031",0.05,0)))))))))) -> 0.164 | E7: =IF(OR(E3="2021-2022",AND(C7="",C9="")),0,IF(AND(E3<>"2021-2022",B7="Yes",C7<=D7),5,IF(AND(E3<>"2021-2022",B7="Yes",C9>=36.7%,D9<=-1.1%),5,IF(AND(E3<>"2021-2022",B7="Yes",C9<36.7%,D9<=-(C9*3%)),5,0)))) -> 0 | F7: =IF(AND(E3="2021-2022"),0,IF(AND(E3<>"2021-2022",B7="Yes"),5,0)) -> 0
C8: Previous Year Percent | D8: Change | E8: =IF(E3="2021-2022", "*Report only for 21-22*","") -> 
D9: =C7-C9 -> 0
A10: Gifted Measure | B10: Applicable | C10: Performance Index Percent | D10: =E3 -> 2024-2025 | E10: Points | F10: Points Possible
A11: Gifted Performance Index | B11: No | D11: =IF(E3="2021-2022",0.95,IF(E3="2022-2023",0.965,IF(E3="2023-2024",0.975,IF(E3="2024-2025",0.975,IF(E3="2025-2026",0.975,IF(E3="2026-2027",0.975,IF(E3="2027-2028",0.975,IF(E3="2028-2029",0.975,IF(E3="2029-2030",0.975, IF(E3="2030-2031",0.975,0)))))))))) -> 0.975 | E11: =IF(AND(B11="Yes",C11>=D11),5,0) -> 0 | F11: =IF(B11="Yes",5,0) -> 0
C12: Star Rating
A13: Gifted Progress | B13: No | D13: 3, 4, 5 Star | E13: =IF(AND(OR(C13="3 Stars",C13="4 Stars",C13="5 Stars"),B13="Yes"),5,0) -> 0 | F13: =IF(B13="Yes",5,0) -> 0
C14: Gifted Identification Percent
A15: Gifted Id and Services | B15: No | D15: =IF(E3="2021-2022",0.6,IF(E3="2022-2023",0.7,IF(E3="2023-2024",0.8,IF(E3="2024-2025",0.8,IF(E3="2025-2026",0.8,IF(E3="2026-2027",0.8,IF(E3="2027-2028",0.8,IF(E3="2028-2029",0.8,IF(E3="2029-2030",0.8, IF(E3="2030-2031",0.8,0)))))))))) -> 0.8 | E15: =IF(AND(C15>=D15,B15="Yes"),5,0) -> 0 | F15: =IF(B15="Yes",5,0) -> 0
A16: ELP Measure | B16: Applicable | C16: English Learner Proficiency | D16: =E3 -> 2024-2025 | E16: Points | F16: Points Possible
A17: English Language Proficiency Improvement Indicator | B17: No | D17: =IF(E3="2021-2022",0.4305,IF(E3="2022-2023",0.466,IF(E3="2023-2024",0.5015,IF(E3="2024-2025",0.537,IF(E3="2025-2026",0.5725,IF(E3="2026-2027",0.608,IF(E3="2027-2028",0.6435,IF(E3="2028-2029",0.679,IF(E3="2029-2030",0.7145, IF(E3="2030-2031",0.75,0)))))))))) -> 0.537 | E17: =IF(AND(B17="Yes",C17>=D17),5,IF(AND(B17="YES",D19<>"Error",D19>=10%),5,0)) -> 0 | F17: =IF(B17="Yes",5,0) -> 0
C18: Previous Year Proficiency | D18: Change
D19: =IF(ISBLANK(C19),"Error",C17-C19) -> Error
A20: ELA Achievement Measure | B20: Applicable | C20: Performance Index | D20: =E3 -> 2024-2025 | E20: Points | F20: Points Possible
A21: ELA Achievement - All Students | B21: No | D21: =IF(E3="2021-2022",78.56,IF(E3="2022-2023",80.94,IF(E3="2023-2024",83.33,IF(E3="2024-2025",85.71,IF(E3="2025-2026",88.09,IF(E3="2026-2027",90.47,IF(E3="2027-2028",92.85,IF(E3="2028-2029",95.24,IF(E3="2029-2030",97.62, IF(E3="2030-2031",100,0)))))))))) -> 85.71 | E21: =IF(AND(B21="Yes",C21>=D21),1,0) -> 0 | F21: =IF(B21="Yes",1,0) -> 0 | P21: Score Range | S21: Stars
A22: ELA Achievement - American Indian/Alaskan Native | B22: No | D22: =IF(E3="2021-2022",69.67,IF(E3="2022-2023",71.26,IF(E3="2023-2024",72.86,IF(E3="2024-2025",74.46,IF(E3="2025-2026",76.05,IF(E3="2026-2027",77.65,IF(E3="2027-2028",79.24,IF(E3="2028-2029",80.84,IF(E3="2029-2030",82.44, IF(E3="2030-2031",84.03,0)))))))))) -> 74.46 | E22: =IF(AND(B22="Yes",C22>=D22),1,0) -> 0 | F22: =IF(B22="Yes",1,0) -> 0 | P22: 0 | Q22: to | R22: 0.1 | S22: 1 Star
A23: ELA Achievement - Asian/Pacific Islander | B23: No | D23: =IF(E3="2021-2022",86.89,IF(E3="2022-2023",87.58,IF(E3="2023-2024",88.27,IF(E3="2024-2025",88.96,IF(E3="2025-2026",89.65,IF(E3="2026-2027",90.34,IF(E3="2027-2028",91.03,IF(E3="2028-2029",91.72,IF(E3="2029-2030",92.41, IF(E3="2030-2031",93.1,0)))))))))) -> 88.96 | E23: 0 | F23: 0 | P23: 0.1 | Q23: to | R23: 0.3 | S23: 2 Stars
A24: ELA Achievement - Black, Non-Hispanic | B24: No | D24: =IF(E3="2021-2022",54.79,IF(E3="2022-2023",57.17,IF(E3="2023-2024",59.55,IF(E3="2024-2025",61.93,IF(E3="2025-2026",64.31,IF(E3="2026-2027",66.69,IF(E3="2027-2028",69.07,IF(E3="2028-2029",71.45,IF(E3="2029-2030",73.83, IF(E3="2030-2031",76.21,0)))))))))) -> 61.93 | E24: 0 | F24: 0 | P24: 0.3 | Q24: to | R24: 0.45 | S24: 3 Stars
A25: ELA Achievement - Hispanic | B25: No | D25: =IF(E3="2021-2022",66.28,IF(E3="2022-2023",68.05,IF(E3="2023-2024",69.83,IF(E3="2024-2025",71.6,IF(E3="2025-2026",73.83,IF(E3="2026-2027",75.15,IF(E3="2027-2028",76.93,IF(E3="2028-2029",78.7,IF(E3="2029-2030",80.48, IF(E3="2030-2031",82.25,0)))))))))) -> 71.6 | E25: 0 | F25: 0 | P25: 0.45 | Q25: to | R25: 0.6 | S25: 4 Stars
A26: ELA Achievement - Multiracial | B26: No | D26: =IF(E3="2021-2022",71.64,IF(E3="2022-2023",73.14,IF(E3="2023-2024",74.63,IF(E3="2024-2025",76.12,IF(E3="2025-2026",77.61,IF(E3="2026-2027",79.11,IF(E3="2027-2028",80.6,IF(E3="2028-2029",82.09,IF(E3="2029-2030",83.58, IF(E3="2030-2031",85.08,0)))))))))) -> 76.12 | E26: 0 | F26: 0 | P26: 0.6 | Q26: to | R26: 1 | S26: 5 Stars
A27: ELA Achievement - White, Non-Hispanic | B27: No | D27: =IF(E3="2021-2022",84.26,IF(E3="2022-2023",85.09,IF(E3="2023-2024",85.92,IF(E3="2024-2025",86.74,IF(E3="2025-2026",87.57,IF(E3="2026-2027",88.4,IF(E3="2027-2028",89.23,IF(E3="2028-2029",90.06,IF(E3="2029-2030",90.89, IF(E3="2030-2031",91.72,0)))))))))) -> 86.74 | E27: 0 | F27: 0
A28: ELA Achievement - Economic Disadvantaged | B28: No | D28: =IF(E3="2021-2022",64.22,IF(E3="2022-2023",66.1,IF(E3="2023-2024",67.98,IF(E3="2024-2025",69.87,IF(E3="2025-2026",71.75,IF(E3="2026-2027",73.63,IF(E3="2027-2028",75.52,IF(E3="2028-2029",77.4,IF(E3="2029-2030",79.28, IF(E3="2030-2031",81.17,0)))))))))) -> 69.87 | E28: 0 | F28: 0
A29: ELA Achievement - Students with Disabilities | B29: No | D29: =IF(E3="2021-2022",50.64,IF(E3="2022-2023",53.24,IF(E3="2023-2024",55.84,IF(E3="2024-2025",58.43,IF(E3="2025-2026",61.03,IF(E3="2026-2027",63.63,IF(E3="2027-2028",66.23,IF(E3="2028-2029",68.83,IF(E3="2029-2030",71.42, IF(E3="2030-2031",74.02,0)))))))))) -> 58.43 | E29: 0 | F29: 0
A30: ELA Achievement -English Learners | B30: No | D30: =IF(E3="2021-2022",62.6,IF(E3="2022-2023",64.57,IF(E3="2023-2024",66.54,IF(E3="2024-2025",68.51,IF(E3="2025-2026",70.48,IF(E3="2026-2027",72.44,IF(E3="2027-2028",74.41,IF(E3="2028-2029",76.38,IF(E3="2029-2030",78.35, IF(E3="2030-2031",80.32,0)))))))))) -> 68.51 | E30: 0 | F30: 0 | I30: Measure | K30: Points Total | L30: Points Possible
A31: ELA Growth Measure | B31: Applicable | C31: Growth Index | D31: =E3 -> 2024-2025 | E31: Points | F31: Points Possible | I31: Chronic Absenteeism | K31: =E7 -> 0 | L31: =F7 -> 0
A32: ELA Growth - All Students | B32: No | D32: 2 | E32: =IF(AND(B32="Yes",C32>=D32),1,0) -> 0 | F32: =IF(B32="Yes",1,0) -> 0 | I32: Gifted Indicator | K32: =SUM(E11,E13,E15) -> 0 | L32: =SUM(F11,F13,F15) -> 0
A33: ELA Growth - American Indian/Alaskan Native | B33: No | D33: 2 | E33: =IF(AND(B33="Yes",C33>=D33),1,0) -> 0 | F33: =IF(B33="Yes",1,0) -> 0 | I33: ELP Indicator | K33: =SUM(E17) -> 0 | L33: =SUM(F17) -> 0
A34: ELA Growth - Asian/Pacific Islander | B34: No | D34: 2 | E34: 0 | F34: 0 | I34: ELA Achievement | K34: =SUM(E21:E30) -> 0 | L34: =SUM(F21:F30) -> 0
A35: ELA Growth - Black, Non-Hispanic | B35: No | D35: 2 | E35: 0 | F35: 0 | I35: ELA Growth | K35: =SUM(E32:E41) -> 0 | L35: =SUM(F32:F41) -> 0 | O35: Participation Demotion
A36: ELA Growth - Hispanic | B36: No | D36: 2 | E36: 0 | F36: 0 | I36: Math Achievement | K36: =SUM(E43:E52) -> 0 | L36: =SUM(F43:F52) -> 0 | O36: Participation Rate | Q36: Goal | R36: Demotion Percentage Point Reduction
A37: ELA Growth - Multiracial | B37: No | D37: 2 | E37: 0 | F37: 0 | I37: Math Growth | K37: =SUM(E54:E63) -> 0 | L37: =SUM(F54:F63) -> 0
A38: ELA Growth - White, Non-Hispanic | B38: No | D38: 2 | E38: 0 | F38: 0 | I38: Graduation | K38: =SUM(E65:E74) -> 0 | L38: =SUM(F65:F74) -> 0 | O38: 0.95 | Q38: 0.95 | R38: =IF(AND(L39<>0,O38<Q38),((K39/L39) -(((K39)*(O38/Q38))/L39)),"No Demotion") -> No Demotion
A39: ELA Growth - Economic Disadvantaged | B39: No | D39: 2 | E39: 0 | F39: 0 | I39: Total | K39: =SUM(K31:K38) -> 0 | L39: =SUM(L31:L38) -> 0
A40: ELA Growth -Student with Disabilities | B40: No | D40: 2 | E40: 0 | F40: 0
A41: ELA Growth - English Learners | B41: No | D41: 2 | E41: 0 | F41: 0
A42: Math Achievement Measure | B42: Applicable | C42: Performance Index | D42: =E3 -> 2024-2025 | E42: Points | F42: Points Possible
A43: Math Achievement - All Students | B43: No | D43: =IF(E3="2021-2022",71.12,IF(E3="2022-2023",74.33,IF(E3="2023-2024",77.54,IF(E3="2024-2025",80.75,IF(E3="2025-2026",83.96,IF(E3="2026-2027",87.16,IF(E3="2027-2028",90.37,IF(E3="2028-2029",93.58,IF(E3="2029-2030",96.79, IF(E3="2030-2031",100,0)))))))))) -> 80.75 | E43: =IF(AND(B43="Yes",C43>=D43),1,0) -> 0 | F43: =IF(B43="Yes",1,0) -> 0
A44: Math Achievement - American Indian/Alaskan Native | B44: No | D44: =IF(E3="2021-2022",60.79,IF(E3="2022-2023",62.85,IF(E3="2023-2024",64.91,IF(E3="2024-2025",66.98,IF(E3="2025-2026",69.04,IF(E3="2026-2027",71.11,IF(E3="2027-2028",73.17,IF(E3="2028-2029",75.23,IF(E3="2029-2030",77.3, IF(E3="2030-2031",79.36,0)))))))))) -> 66.98 | E44: =IF(AND(B44="Yes",C44>=D44),1,0) -> 0 | F44: =IF(B44="Yes",1,0) -> 0
A45: Math Achievement - Asian/Pacific Islander | B45: No | D45: =IF(E3="2021-2022",83.93,IF(E3="2022-2023",84.78,IF(E3="2023-2024",85.62,IF(E3="2024-2025",86.47,IF(E3="2025-2026",87.32,IF(E3="2026-2027",88.16,IF(E3="2027-2028",89.01,IF(E3="2028-2029",89.85,IF(E3="2029-2030",90.7, IF(E3="2030-2031",91.54,0)))))))))) -> 86.47 | E45: 0 | F45: 0
A46: Math Achievement - Black, Non-Hispanic | B46: No | D46: =IF(E3="2021-2022",44.09,IF(E3="2022-2023",47.03,IF(E3="2023-2024",49.97,IF(E3="2024-2025",52.92,IF(E3="2025-2026",55.86,IF(E3="2026-2027",58.8,IF(E3="2027-2028",61.74,IF(E3="2028-2029",64.69,IF(E3="2029-2030",67.63, IF(E3="2030-2031",70.57,0)))))))))) -> 52.92 | E46: 0 | F46: 0
A47: Math Achievement - Hispanic | B47: No | D47: =IF(E3="2021-2022",57.7,IF(E3="2022-2023",59.93,IF(E3="2023-2024",62.15,IF(E3="2024-2025",64.38,IF(E3="2025-2026",66.61,IF(E3="2026-2027",68.83,IF(E3="2027-2028",71.06,IF(E3="2028-2029",73.29,IF(E3="2029-2030",75.51, IF(E3="2030-2031",77.74,0)))))))))) -> 64.38 | E47: 0 | F47: 0 | O47: Gap Closing Percent | S47: =IF(AND(R38="No Demotion",L39<>0),K39/L39,IF(L39=0,"",(O38/Q38)*(K39/L39))) -> 
A48: Math Achievement - Multiracial | B48: No | D48: =IF(E3="2021-2022",61.72,IF(E3="2022-2023",63.73,IF(E3="2023-2024",65.75,IF(E3="2024-2025",67.76,IF(E3="2025-2026",69.78,IF(E3="2026-2027",71.79,IF(E3="2027-2028",73.81,IF(E3="2028-2029",75.82,IF(E3="2029-2030",77.84, IF(E3="2030-2031",79.85,0)))))))))) -> 67.76 | E48: 0 | F48: 0 | O48: Gap Closing Rating | S48: =IF(AND(S47>=P26,L39<>0),"5 Stars",IF(AND(S47>=P25,S47<R25,L39<>0),"4 Stars",IF(AND(S47>=P24,S47<R24,L39<>0),"3 Stars",IF(AND(S47>=P23,S47<R23,L39<>0),"2 Stars",IF(AND(S47<R22,L39<>0),"1 Star",IF(AND(L39=0,S47=""),"Not Rated","Error")))))) -> Not Rated
A49: Math Achievement - White, Non-Hispanic | B49: No | D49: =IF(E3="2021-2022",77.23,IF(E3="2022-2023",78.43,IF(E3="2023-2024",79.63,IF(E3="2024-2025",80.83,IF(E3="2025-2026",82.03,IF(E3="2026-2027",83.22,IF(E3="2027-2028",84.42,IF(E3="2028-2029",85.62,IF(E3="2029-2030",86.82, IF(E3="2030-2031",88.02,0)))))))))) -> 80.83 | E49: 0 | F49: 0
A50: Math Achievement - Economic Disadvantaged | B50: No | D50: =IF(E3="2021-2022",55.12,IF(E3="2022-2023",57.48,IF(E3="2023-2024",59.84,IF(E3="2024-2025",62.21,IF(E3="2025-2026",64.57,IF(E3="2026-2027",66.93,IF(E3="2027-2028",69.29,IF(E3="2028-2029",71.65,IF(E3="2029-2030",74.02, IF(E3="2030-2031",76.38,0)))))))))) -> 62.21 | E50: 0 | F50: 0
A51: Math Achievement - Students with Diabilities | B51: No | D51: =IF(E3="2021-2022",45.52,IF(E3="2022-2023",48.39,IF(E3="2023-2024",51.26,IF(E3="2024-2025",54.12,IF(E3="2025-2026",56.99,IF(E3="2026-2027",59.86,IF(E3="2027-2028",62.73,IF(E3="2028-2029",65.59,IF(E3="2029-2030",68.46, IF(E3="2030-2031",71.33,0)))))))))) -> 54.12 | E51: 0 | F51: 0
A52: Math Achievement -English Learners | B52: No | D52: =IF(E3="2021-2022",56.97,IF(E3="2022-2023",59.23,IF(E3="2023-2024",61.5,IF(E3="2024-2025",63.76,IF(E3="2025-2026",66.03,IF(E3="2026-2027",68.29,IF(E3="2027-2028",70.56,IF(E3="2028-2029",72.82,IF(E3="2029-2030",75.09, IF(E3="2030-2031",77.35,0)))))))))) -> 63.76 | E52: 0 | F52: 0
A53: Math Growth Measure | B53: Applicable | C53: Growth Index | D53: =E3 -> 2024-2025 | E53: Points | F53: Points Possible
A54: Math Growth - All Students | B54: No | D54: 2 | E54: =IF(AND(B54="Yes",C54>=D54),1,0) -> 0 | F54: =IF(B54="Yes",1,0) -> 0
A55: Math Growth - American Indian/Alaskan Native | B55: No | D55: 2 | E55: =IF(AND(B55="Yes",C55>=D55),1,0) -> 0 | F55: =IF(B55="Yes",1,0) -> 0
A56: Math Growth - Asian/Pacific Islander | B56: No | D56: 2 | E56: 0 | F56: 0
A57: Math Growth - Black, Non-Hispanic | B57: No | D57: 2 | E57: 0 | F57: 0
A58: Math Growth - Hispanic | B58: No | D58: 2 | E58: 0 | F58: 0
A59: Math Growth - Multiracial | B59: No | D59: 2 | E59: 0 | F59: 0
A60: Math Growth - White, Non-Hispanic | B60: No | D60: 2 | E60: 0 | F60: 0
A61: Math Growth - Economic Disadvantaged | B61: No | D61: 2 | E61: 0 | F61: 0
A62: Math Growth - Students with Disabilities | B62: No | D62: 2 | E62: 0 | F62: 0
A63: Math Growth - English Learners | B63: No | D63: 2 | E63: 0 | F63: 0
A64: Graduation Measure | B64: Applicable | C64: Graduation Rate | D64: =E3 -> 2024-2025 | E64: Points | F64: Points Possible
A65: Graduation - All Students | B65: No | D65: =IF(E3="2021-2022",0.8813,IF(E3="2022-2023",0.8906,IF(E3="2023-2024",0.8999,IF(E3="2024-2025",0.9092,IF(E3="2025-2026",0.9185,IF(E3="2026-2027",0.9278,IF(E3="2027-2028",0.9371,IF(E3="2028-2029",0.9464,IF(E3="2029-2030",0.9557, IF(E3="2030-2031",0.965,0)))))))))) -> 0.9092 | E65: =IF(AND(B65="Yes",C65>=D65),1,0) -> 0 | F65: =IF(B65="Yes",1,0) -> 0
A66: Graduation - American Indian/Alaskan Native | B66: No | D66: =IF(E3="2021-2022",0.8064,IF(E3="2022-2023",0.8147,IF(E3="2023-2024",0.8231,IF(E3="2024-2025",0.8314,IF(E3="2025-2026",0.8398,IF(E3="2026-2027",0.8481,IF(E3="2027-2028",0.8565,IF(E3="2028-2029",0.8648,IF(E3="2029-2030",0.8732, IF(E3="2030-2031",0.8815,0)))))))))) -> 0.8314 | E66: =IF(AND(B66="Yes",C66>=D66),1,0) -> 0 | F66: =IF(B66="Yes",1,0) -> 0
A67: Graduation - Asian/Pacific Islander | B67: No | D67: =IF(E3="2021-2022",0.927,IF(E3="2022-2023",0.929,IF(E3="2023-2024",0.931,IF(E3="2024-2025",0.933,IF(E3="2025-2026",0.935,IF(E3="2026-2027",0.937,IF(E3="2027-2028",0.939,IF(E3="2028-2029",0.941,IF(E3="2029-2030",0.943, IF(E3="2030-2031",0.945,0)))))))))) -> 0.933 | E67: 0 | F67: 0
A68: Graduation - Black, Non-Hispanic | B68: No | D68: =IF(E3="2021-2022",0.7788,IF(E3="2022-2023",0.7886,IF(E3="2023-2024",0.7984,IF(E3="2024-2025",0.8082,IF(E3="2025-2026",0.818,IF(E3="2026-2027",0.8278,IF(E3="2027-2028",0.8376,IF(E3="2028-2029",0.8474,IF(E3="2029-2030",0.8572, IF(E3="2030-2031",0.867,0)))))))))) -> 0.8082 | E68: 0 | F68: 0
A69: Graduation - Hispanic | B69: No | D69: =IF(E3="2021-2022",0.7969,IF(E3="2022-2023",0.8057,IF(E3="2023-2024",0.8146,IF(E3="2024-2025",0.8234,IF(E3="2025-2026",0.8323,IF(E3="2026-2027",0.8411,IF(E3="2027-2028",0.85,IF(E3="2028-2029",0.8588,IF(E3="2029-2030",0.8677, IF(E3="2030-2031",0.8765,0)))))))))) -> 0.8234 | E69: 0 | F69: 0
A70: Graduation - Multiracial | B70: No | D70: =IF(E3="2021-2022",0.8425,IF(E3="2022-2023",0.8489,IF(E3="2023-2024",0.8554,IF(E3="2024-2025",0.8618,IF(E3="2025-2026",0.8683,IF(E3="2026-2027",0.8747,IF(E3="2027-2028",0.8812,IF(E3="2028-2029",0.8876,IF(E3="2029-2030",0.8941, IF(E3="2030-2031",0.9005,0)))))))))) -> 0.8618 | E70: 0 | F70: 0
A71: Graduation - White, Non-Hispanic | B71: No | D71: =IF(E3="2021-2022",0.9042,IF(E3="2022-2023",0.9074,IF(E3="2023-2024",0.9106,IF(E3="2024-2025",0.9138,IF(E3="2025-2026",0.917,IF(E3="2026-2027",0.9202,IF(E3="2027-2028",0.9234,IF(E3="2028-2029",0.9266,IF(E3="2029-2030",0.9298, IF(E3="2030-2031",0.933,0)))))))))) -> 0.9138 | E71: 0 | F71: 0
A72: Graduation - Economically Disadvantaged | B72: No | D72: =IF(E3="2021-2022",0.7931,IF(E3="2022-2023",0.8021,IF(E3="2023-2024",0.8112,IF(E3="2024-2025",0.8202,IF(E3="2025-2026",0.8293,IF(E3="2026-2027",0.8383,IF(E3="2027-2028",0.8474,IF(E3="2028-2029",0.8564,IF(E3="2029-2030",0.8655, IF(E3="2030-2031",0.8745,0)))))))))) -> 0.8202 | E72: 0 | F72: 0
A73: Graduation - Students with Disabilities | B73: No | D73: =IF(E3="2021-2022",0.7541,IF(E3="2022-2023",0.7652,IF(E3="2023-2024",0.7763,IF(E3="2024-2025",0.7874,IF(E3="2025-2026",0.7985,IF(E3="2026-2027",0.8096,IF(E3="2027-2028",0.8207,IF(E3="2028-2029",0.8318,IF(E3="2029-2030",0.8429, IF(E3="2030-2031",0.854,0)))))))))) -> 0.7874 | E73: 0 | F73: 0
A74: Graduation - English Learners | B74: No | D74: =IF(E3="2021-2022",0.7199,IF(E3="2022-2023",0.7328,IF(E3="2023-2024",0.7457,IF(E3="2024-2025",0.7586,IF(E3="2025-2026",0.7715,IF(E3="2026-2027",0.7844,IF(E3="2027-2028",0.7973,IF(E3="2028-2029",0.8102,IF(E3="2029-2030",0.8231, IF(E3="2030-2031",0.836,0)))))))))) -> 0.7586 | E74: 0 | F74: 0
A76: Technical Document
A77: Report Card Resources

Sheet Gifted Id and Srvcs - Building
A1: How To Use This Simulator:
A2: To use this simulator. Enter your gifted identification and served data in the input boxes below (outlined in red).
A3: Select the year to ensure the correct met % is applied.
A5: Building Inputs | J5: Point Totals
A7: SUPERIOR COGNITIVE AND SPECIFIC ACADEMIC ABILITY IDENTIFICATION AND SERVICES
A8: K-12 Band | K8: Superior Cognitive | M8: Points Received | O8: Points Possible
A9: Students Identified FTE | C9: Total Students FTE | E9: Students Served FTE | G9: Students Identified FTE | K9: Identified | M9: =IF(AND(C10<15),"<15 Students",IF(AND(A12>=0,A12<0.1%),0,IF(AND(A12>=0.1%,A12<1%),5,IF(AND(A12>=1%,A12<2%),10,IF(AND(A12>=2%,A12<5%),15,IF(AND(A12>=5%,A12<10%),20,IF(AND(A12>=10%,A12<15%),25,IF(AND(A12>=15%),30,0)))))))) -> <15 Students | O9: =IF(C10<15,0,30) -> 0
G10: =A10 -> 0 | K10: Served | M10: =IF(AND(G10<15),"<15 Students",IF(AND(E12>=0,E12<1%),0,IF(AND(E12>=1%,E12<10%),5,IF(AND(E12>=10%,E12<40%),10,IF(AND(E12>=40%,E12<60%),20,IF(AND(E12>=60%,E12<80%),30,IF(AND(E12>=80%),40))))))) -> <15 Students | O10: =IF(G10<15,0,40) -> 0
A11: Percent Identified | C11: Points | E11: Percent Served | G11: Points
A12: =A10/C10 ->  | E12: =E10/G10 -> 
A14: CREATIVE THINKING AND VISUAL OR PERFORMING ARTS ABILITY IDENTIFICATION AND SERVICES
A16: K-12 Band | K16: Creative Thinking | M16: Points Received | O16: Points Possible
A17: Students Identified FTE | C17: Total Students FTE | E17: Students Served FTE | G17: Students Identified FTE | K17: Identified | M17: =IF(AND(C18<15),"<15 Students",IF(AND(A20>=0,A20<0.1%),0,IF(AND(A20>=0.1%,A20<1%),1,IF(AND(A20>=1%,A20<2%),2,IF(AND(A20>=2%,A20<3%),3,IF(AND(A20>=3%,A20<5%),4,IF(AND(A20>=5%),5,0))))))) -> <15 Students | O17: =IF(C18<15,0,5) -> 0
G18: =A18 -> 0 | K18: Served | M18: =IF(AND(G18<15),"<15 Students", IF(AND(E20>=0,E20<1%),0,IF(AND(E20>=1%,E20<10%),1,IF(AND(E20>=10%,E20<40%), 2,IF(AND(E20>=40%,E20<60%), 3,IF(AND(E20>=60%,E20<80%), 4,IF(AND(E20>=80%),5,0))))))) -> <15 Students | O18: =IF(G18<15,0,5) -> 0
A19: Percent Identified | C19: Points | E19: Percent Served | G19: Points
A20: =A18/C18 ->  | E20: =E18/G18 ->  | S20: Category | T20: Total Points | U20: Total Possible
S21: Identified | T21: =SUM(M9,M17,M25,M34) -> 0 | U21: =SUM(O9,O17,O25,O34) -> 0
A22: ECONOMIC DISADVANTAGE REPRESENTATION INDEX | S22: Served | T22: =SUM(M35,M26,M18,M10) -> 0 | U22: =SUM(O10,O18,O26,O35) -> 0
A23: K-12 Band
A24: Economic Disadvantage FTE | E24: Total FTE | K24: ED Rep Index | M24: Points Received | O24: Points Possible
K25: Identified | M25: =IF(AND(E25<15),"<15 Students",IF(AND(A29>=0,A29<0.4),0,IF(AND(A29>=0.4,A29<0.5),4,IF(AND(A29>=0.5,A29<0.6),8,IF(AND(A29>=0.6,A29<0.7),12,IF(AND(A29>=0.7,A29<0.8),16,(IF(AND(A29>=0.8),20,"Error")))))))) -> <15 Students | O25: =IF(E25<15,0,20) -> 0
A26: ED Students Identified FTE | C26: Total Identified FTE | E26: ED Students Served FTE | G26: Total Served FTE | K26: Served | M26: =IF(AND(A27<15),"<15 Students",IF(AND(E29>=0,E29<0.4),0,IF(AND(E29>=0.4,E29<0.5),2,IF(AND(E29>=0.5,E29<0.6),4,IF(AND(E29>=0.6,E29<0.7),6,IF(AND(E29>=0.7,E29<0.8),8,IF(AND(E29>=0.8),10,"Error"))))))) -> <15 Students | O26: =IF(A27<15,0,10) -> 0
A28: Representation Index | E28: Representation Index
A29: =(A27/C27)/(A25/E25) ->  | E29: =(E27/G27)/(A25/E25) -> 
A31: UNDERREPRESENTED MINORITY REPRESENTATION INDEX | S31: Total Points | T31: Total Possible | U31: Final Percent | V31: Indicator
A32: K-12 Band | S32: =SUM(T21:T22) -> 0 | T32: =SUM(U21:U22) -> 0 | U32: =S32/T32 ->  | V32: =IF(AND(U35="2021-2022",U32>=60%),"Met",IF(AND(U35="2022-2023",U32>=70%),"Met",IF(AND(U35="2023-2024",U32>=80%),"Met","Not Met"))) -> 
A33: Underrepresented Minority FTE | E33: Total FTE | K33: Minority Rep Index | M33: Points Received | O33: Points Possible
K34: Identified | M34: =IF(AND(E34<15),"<15 Students",IF(AND(A38>=0,A38<0.4),0,IF(AND(A38>=0.4,A38<0.5),4,IF(AND(A38>=0.5,A38<0.6),8,IF(AND(A38>=0.6,A38<0.7),12,IF(AND(A38>=0.7,A38<0.8),16,(IF(AND(A38>=0.8),20,"Error")))))))) -> <15 Students | O34: =IF(E34<15,0,20) -> 0
A35: Minority Identified FTE | C35: Total Identified FTE | E35: Minority Served FTE | G35: Total Served FTE | K35: Served | M35: =IF(AND(A36<15),"<15 Students",IF(AND(E38>=0,E38<0.4),0,IF(AND(E38>=0.4,E38<0.5),2,IF(AND(E38>=0.5,E38<0.6),4,IF(AND(E38>=0.6,E38<0.7),6,IF(AND(E38>=0.7,E38<0.8),8,IF(AND(E38>=0.8),10,"Error"))))))) -> <15 Students | O35: =IF(A36<15,0,10) -> 0 | T35: Select Year | U35: 2023-2024
A37: Representation Index | E37: Representation Index
A38: =(A36/C36)/(A34/E34) ->  | E38: =(E36/G36)/(A34/E34) -> 
A40: Technical Document
A41: Report Card Resources

Sheet Gifted Id and Srvcs - District
A1: How To Use This Simulator:
A2: To use this simulator. Enter your gifted identification and served data in the input boxes below (outlined in red).
A3: Select the year to ensure the correct met % is applied.
A5: District Inputs | J5: Point Totals
A7: SUPERIOR COGNITIVE AND SPECIFIC ACADEMIC ABILITY IDENTIFICATION
A8: K-2 Grade Band | C8: 3-6 Grade Band | E8: 7-8 Grade Band | G8: 9-12 Grade Band | K8: Superior Cognitive | L8: Points Received | M8: Points Possible
A9: Students Identified FTE | B9: Total Students FTE | C9: Students Identified FTE | D9: Total Students FTE | E9: Students Identified FTE | F9: Total Students FTE | G9: Students Identified FTE | H9: Total Students FTE | K9: Identification K-2 | L9: =IF(AND(B10<15),"<15 Students",IF(AND(A12>=0.1%,A12<1%),1,IF(AND(A12>=1%,A12<2%),5,IF(AND(A12>=2%,A12<5%),9,IF(AND(A12>=5%,A12<10%),12,IF(A12>=10%,15,0)))))) -> <15 Students | M9: =IF(B10>=15,15,0) -> 0
K10: Identification 3-6 | L10: =IF(AND(D10<15),"<15 Students",IF(AND(C12>=0.1%,C12<3%),1,IF(AND(C12>=3%,C12<5%),2,IF(AND(C12>=5%,C12<10%),3,IF(AND(C12>=10%,C12<15%),4,IF(C12>=15%,5,0)))))) -> <15 Students | M10: =IF(D10>=15,5,0) -> 0
A11: Percent Identified | C11: Percent Identified | E11: Percent Identified | G11: Percent Identified | K11: Identification 7-8 | L11: =IF(AND(F10<15),"<15 Students",IF(AND(E12>=0.1%,E12<3%),1,IF(AND(E12>=3%,E12<5%),2,IF(AND(E12>=5%,E12<10%),3,IF(AND(E12>=10%,E12<15%),4,IF(AND(E12>=15%),5,0)))))) -> <15 Students | M11: =IF(F10>=15,5,0) -> 0
A12: =A10/B10 ->  | C12: =C10/D10 ->  | E12: =E10/F10 ->  | G12: =G10/H10 ->  | K12: Identification 9-12 | L12: =IF(AND(H10<15),"<15 Students",IF(AND(G12>=0.1%,G12<3%),1,IF(AND(G12>=3%,G12<5%),2,IF(AND(G12>=5%,G12<10%),3,IF(AND(G12>=10%,G12<15%),4,IF(G12>=15%,5,0)))))) -> <15 Students | M12: =IF(H10>=15,5,0) -> 0
A13: SUPERIOR COGNITIVE AND SPECIFIC ACADEMIC ABILITY SERVED | K13: Served K-2 | L13: =IF(AND(B16<15),"<15 Students",IF(AND(A18>=1%,A18<10%),2,IF(AND(A18>=10%,A18<40%),4,IF(AND(A18>=40%,A18<60%),6,IF(AND(A18>=60%,A18<80%),8,IF(A18>=80%,10,0)))))) -> <15 Students | M13: =IF(B16>=15,10,0) -> 0
A14: K-2 Grade Band | C14: 3-6 Grade Band | E14: 7-8 Grade Band | G14: 9-12 Grade Band | K14: Served 3-6 | L14: =IF(AND(D16<15),"<15 Students",IF(AND(C18>=1%,C18<20%),2,IF(AND(C18>=20%,C18<40%),4,IF(AND(C18>=40%,C18<60%),6,IF(AND(C18>=60%,C18<80%),8,IF(C18>=80%,10,0)))))) -> <15 Students | M14: =IF(D16>=15,10,0) -> 0
A15: Students Served FTE | B15: Students Identified FTE | C15: Students Served FTE | D15: Students Identified FTE | E15: Students Served FTE | F15: Students Identified FTE | G15: Students Served FTE | H15: Students Identified FTE | K15: Served 7-8 | L15: =IF(AND(F16<15),"<15 Students",IF(AND(E18>=1%,E18<20%),2,IF(AND(E18>=20%,E18<40%),4,IF(AND(E18>=40%,E18<60%),6,IF(AND(E18>=60%,E18<80%),8,IF(E18>=80%,10,0)))))) -> <15 Students | M15: =IF(F16>=15,10,0) -> 0
B16: =A10 -> 0 | D16: =C10 -> 0 | F16: =E10 -> 0 | H16: =G10 -> 0 | K16: Served 9-12 | L16: =IF(AND(H16<15),"<15 Students",IF(AND(G18>=1%,G18<20%),2,IF(AND(G18>=20%,G18<40%),4,IF(AND(G18>=40%,G18<60%),6,IF(AND(G18>=60%,G18<80%),8,IF(G18>=80%,10,0)))))) -> <15 Students | M16: =IF(H16>=15,10,0) -> 0
A17: Percent Served | C17: Percent Served | E17: Percent Served | G17: Percent Served
A18: =A16/B16 ->  | C18: =C16/D16 ->  | E18: =E16/F16 ->  | G18: =G16/H16 -> 
A20: CREATIVE THINKING AND VISUAL OR PERFORMING ARTS ABILITY IDENTIFICATION AND SERVICES | K20: Creative Thinking/Visual Arts | L20: Points Received | M20: Points Possible
A21: K-12 Grade Span | K21: Identified | L21: =IF(AND(B23<15),"<15 Students",IF(AND(A25>=0.1%,A25<1%),1,IF(AND(A25>=1%,A25<2%),2,IF(AND(A25>=2%,A25<5%),3,IF(AND(A25>=5%,A25<10%),4,IF(A25>=10%,5,0)))))) -> <15 Students | M21: =IF(B23<15,0,5) -> 0 | P21: Category | Q21: Total Points | R21: Total Possible
A22: Students Identified FTE | B22: Total Students FTE | C22: Students Served FTE | D22: Students Identified FTE | K22: Served | L22: =IF(AND(D23<15),"<15 Students",IF(AND(C25>=1%,C25<10%),1,IF(AND(C25>=10%,C25<40%),2,IF(AND(C25>=40%,C25<60%),3,IF(AND(C25>=60%,C25<80%),4,IF(C25>=80%,5,0)))))) -> <15 Students | M22: =IF(D23<15,0,5) -> 0 | P22: Identified | Q22: =SUM(L9:L12,L21,L29,L38) -> 0 | R22: =SUM(M9:M12,M21,M29,M38) -> 0
D23: =A23 -> 0 | P23: Served | Q23: =SUM(L13:L16,L22,L30,L39) -> 0 | R23: =SUM(M13:M16,M22,M30,M39) -> 0
A24: Percent Identified | C24: Percent Served
A25: =A23/B23 ->  | C25: =C23/D23 -> 
A27: ECONOMIC DISADVANTAGE REPRESENTATION INDEX
A28: K-12 Grade Span | K28: ED Rep Index | L28: Points Received | M28: Points Possible
A29: Economic Disadvantage FTE | C29: Total FTE | K29: Identified | L29: =IF(AND(C30<15),"<15 Students",IF(AND(A34>0, A34<0.4),0,IF(AND(A34>=0.4,A34<0.5),4,IF(AND(A34>=0.5,A34<0.6),8,IF(AND(A34>=0.6,A34<0.7),12,IF(AND(A34>=0.7,A34<0.8),16,IF(AND(A34>=0.8),20,0))))))) -> <15 Students | M29: =IF(C30<15,0,20) -> 0
K30: Served | L30: =IF(AND(A32<15),"<15 Students",IF(AND(C34>=0,C34<0.4),0,IF(AND(C34>=0.4,C34<0.5),2,IF(AND(C34>=0.5,C34<0.6),4,IF(AND(C34>=0.6, C34<0.7),6,IF(AND(C34>=0.7,C34<0.8),8,IF(AND(C34>=0.8),10,0))))))) -> <15 Students | M30: =IF(A32<15,0,10) -> 0
A31: ED Students Identified FTE | B31: Total Identified FTE | C31: ED Students Served FTE | D31: Total Served FTE
A33: Representation Index | C33: Representation Index | P33: Total Points | Q33: Total Possible | R33: Final Percent | S33: Indicator
A34: =(A32/B32)/(A30/C30) ->  | C34: =(C32/D32)/(A30/C30) ->  | P34: =SUM(Q22:Q23) -> 0 | Q34: =SUM(R22:R23) -> 0 | R34: =P34/Q34 ->  | S34: =IF(AND(R37="2021-2022",R34>=60%),"Met",IF(AND(R37="2022-2023",R34>=70%),"Met",IF(AND(R37="2023-2024",R34>=80%),"Met","Not Met"))) -> 
A36: UNDERREPRESENTED MINORITY REPRESENTATION INDEX
A37: K-12 Grade Span | K37: Minority Rep Index | L37: Points Received | M37: Points Possible | Q37: SELECT YEAR | R37: 2023-2024
A38: Underrepresented Minority FTE | C38: Total FTE | K38: Identified | L38: =(IF(AND(C39<15),"<15 Students",IF(AND(A43>=0,A43<0.4),0,IF(AND(A43>=0.4,A43<0.5),4,IF(AND(A43>=0.5,A43<0.6),8,IF(AND(A43>=0.6,A43<0.7),12,IF(AND(A43>=0.7,A43<0.8),16,IF(AND(A43>=0.8),20,0)))))))) -> <15 Students | M38: =IF(C39<15,0,20) -> 0
K39: Served | L39: =IF(AND(A41<15),"<15 Students",IF(AND(C43>=0,C43<0.4),0,IF(AND(C43>=0.4,C43<0.5),2,IF(AND(C43>=0.5,C43<0.6),4,IF(AND(C43>=0.6, C43<0.7),6,IF(AND(C43>=0.7,C43<0.8),8,IF(AND(C43>=0.8),10,0))))))) -> <15 Students | M39: =IF(A41<15,0,10) -> 0
A40: Minority Identified FTE | B40: Total Identified FTE | C40: Minority Served FTE | D40: Total Served FTE
B41: =B32 -> 0 | D41: =D32 -> 0
A42: Representation Index | C42: Representation Index
A43: =(A41/B41)/(A39/C39) ->  | C43: =(C41/D41)/(A39/C39) -> 
A45: Technical Document
A46: Report Card Resources

Sheet Early Literacy
A1: How To Use This Simulator:
A2: To use this simulator. Enter your component measure percentages in the input boxes below (outlined in red).
A3: The Improving K-3 Literacy measure also includes a question about the percent of Kindergarten student found to be "off track".
A4: You will need to select either Yes or No from the drop down in that input box before the simulator will preform any calculations.
A6: Inputs | H6: Measure Weighting | M6: Component Rating
T7: 0 | U7: 1
T8: 58 | U8: 2
A9: Promotion to Fourth Grade | T9: 68 | U9: 3
A10: Enter a number between 0 and 100 | C10: Does the building/district serve 3rd Grade? | T10: 78 | U10: 4
I11: Measure | J11: Weighting | K11: Weighted Points | N11: Score Range | Q11: Stars | T11: 88 | U11: 5
C12: Please Select Yes or No | I12: Promotion to Fourth Grade | J12: =IF(AND(K10_Yes_No="",K3_Yes_No=""),"Please Select Yes or No",IF(AND(K10_Yes_No="Yes",K3_Yes_No="Yes"),0.4,IF(AND(K10_Yes_No="No",K3_Yes_No="Yes"),0.35,IF(AND(K3_Yes_No="No",K10_Yes_No="No"),0,IF(AND(K3_Yes_No="No",K10_Yes_No="Yes"),0))))) -> 0.35 | K12: =IF(Promo4th_weight="Please Select Yes or No",0, IF(Promo4th_weight<>"Please Select Yes or No",Promo4th*Promo4th_weight)) -> 0 | N12: 0.88 | O12: To | P12: 1 | Q12: 5 | S12: Early Literacy Component Rating
A13: Proficiency in Third Grade Reading | C13: Yes | I13: Proficiency in Third Grade Reading | J13: =IF(AND(K10_Yes_No="", K3_Yes_No=""),"Please Select Yes or No",IF(AND(K10_Yes_No="Yes", K3_Yes_No="Yes"),0.6,IF(AND(K10_Yes_No="No", K3_Yes_No="Yes"),0.4, IF(AND(K10_Yes_No="Yes", K3_Yes_No="No"),0, IF(AND(K10_Yes_No="No", K3_Yes_No="No"), 0))))) -> 0.4 | K13: =IF(Prof3rd_weight="Please Select Yes or No",0, IF(Prof3rd_weight<>"Please Select Yes or No",Prof3rd*Prof3rd_weight)) -> 0 | N13: 0.78 | O13: To | P13: 0.88 | Q13: 4
A14: Enter a number between 0 and 100 | I14: Improving K-3 Literacy | J14: =IF(AND(K10_Yes_No="", K3_Yes_No=""),"Please Select Yes or No",IF(AND(K10_Yes_No="Yes", K3_Yes_No="Yes"),0,IF(AND(K10_Yes_No="Yes", K3_Yes_No="No"),0,IF(AND(K10_Yes_No="No", K3_Yes_No="Yes"),0.25, IF(AND(K10_Yes_No="No", K3_Yes_No="No"),1))))) -> 0.25 | K14: =IF(Imporv3rd_weight="Please Select Yes or No",0,IF(Imporv3rd_weight<>"Please Select Yes or No",Improvk3*Imporv3rd_weight)) -> 0 | N14: 0.68 | O14: To | P14: 0.78 | Q14: 3 | S14: =IF(Total_Weighted_Points=0,"",IF(Total_Weighted_Points="","Not Rated",VLOOKUP(Total_Weighted_Points,T7:U11,2,TRUE))) -> Not Rated
N15: 0.58 | O15: To | P15: 0.68 | Q15: 2
C16: Were less than 10% of your Kindergarten students 'off track'? | K16: Total Weighted Points | N16: 0 | O16: To | P16: 0.58 | Q16: 1
A17: Improving K-3 Literacy | K17: =IF(AND(Promo4th="",Prof3rd="",Improvk3=""),"",SUM(K12:K14)) -> 
A18: Enter a number between 0 and 100 | C18: Please Select Yes or No
C19: No
D20: No | E20: Yes
A22: Technical Document
A23: Report Card Resources

Sheet Graduation
A1: How To Use This Simulator:
A2: To use this simulator enter the number of four-year graduates and five-year graduates. Enter the number of students in the four-year graduation cohort and five-year graduation cohort
A5: Graduation Inputs | E5: Measure Weighting | K5: Graduation Component Rating
L9: Weighted Graduation Rate Range | O9: Stars
A10: Four-Year Graduates | B10: Students in the Class of Prior year | C10: Four-Year Adjusted Cohort Graduation Rate Meaure | F10: Weighting | G10: Weighted Percentage | L10: 0.965 | M10: To | N10: 1 | O10: 5 Stars
C11: =IF(OR(B11="",B11=0,A11>B11),"",A11/B11) ->  | F11: =IF(OR(B11 < 10,B11=""),0,IF(B14<10,1,0.6)) -> 0 | G11: =C11*F11 ->  | I11: Weighted Graduation Rate | L11: 0.935 | M11: To | N11: 0.965 | O11: 4 Stars | Q11: Graduation Component Rating
I12: =IF(AND(F14=0%,F11<>0%),G11,IF(AND(F11=0%,F14<>0%),G14,IF(AND(F11<>0%,F14<>0%),G11+G14,IF(AND(F11=0%,F14=0%),"",0)))) ->  | L12: 0.9 | M12: To | N12: 0.935 | O12: 3 Stars | Q12: =IF(AND(I12>=L10,I12<>""),O10,IF(AND(I12>=L11,I12<>""),O11,IF(AND(I12>=L12,I12<>""),O12,IF(AND(I12>=L13,I12<>""),O13,IF(I12="","Not Rated",O14))))) -> Not Rated
A13: Five-Year Graduates | B13: Students in the Class of 2 years Prior | C13: Five-Year Adjusted Cohort Graduation Rate Measure | F13: Weighting | G13: Weighted Percentage | L13: 0.84 | M13: To | N13: 0.9 | O13: 2 Stars
C14: =IF(OR(B14="",B14=0,A14>B14),"",A14/B14) ->  | F14: =IF(OR(B14<10,B14=""),0,IF(B11<10,1,0.4)) -> 0 | G14: =C14*F14 ->  | L14: 0 | M14: To | N14: 0.84 | O14: 1 Star
A20: Technical Document
A21: Report Card Resources

Sheet CCWMR
A1: How To Use This Simulator:
A2: Input the number of students in the 4-year graduation cohort demonstrating post-secondary readiness and number of students in the 4-year graduation cohort
A6: CCWMR Inputs | H6: CCWMR Rating
M8: CCWMR Percentage | P8: Stars
M9: 0.85 | N9: to | O9: 1 | P9: 5 Stars
B10: Number of students in the 4-year graduation cohort demonstrating post-secondary readiness | I10: CCWMR Percentage | M10: 0.75 | N10: to | O10: 0.85 | P10: 4 Stars
I11: =IF(OR(B16<10,B16=0,B16=""),"",ROUND(B12/B16,3)) ->  | M11: 0.63 | N11: to | O11: 0.75 | P11: 3 Stars
M12: 0.53 | N12: to | O12: 0.63 | P12: 2 Stars
M13: 0 | N13: to | O13: 0.53 | P13: 1 Star
B14: Number of students in the 4-year graduation cohort
M17: CCWMR Rating
M18: =IF(AND(I11>=M9,I11<>""),P9,IF(AND(I11>=M10,I11<O10,I11<>""),P10,IF(AND(I11>=M11,I11<O11,I11<>""),P11,IF(AND(I11>=M12,I11<O12,I11<>""),P12,IF(AND(I11>=M13,I11<O13,I11<>""),P13,IF(I11="","Not Rated","Error")))))) -> Not Rated

Sheet Overall
A1: How To Use This Simulator:
A2: To use this simulator. Enter your component data in the input boxes below (outlined in red).
A5: Component Inputs | G5: Point Totals
A6: Achievement
H7: PERFORMANCE INDEX PERCENT TO POINTS
H8: Component Rating | I8: Percentage | L8: Points
H9: 5 Star >=90% | I9: 0.95 | J9: to | K9: 1 | L9: 5
I10: 0.925 | J10: to | K10: 0.95 | L10: 4.75
I11: 0.91 | J11: to | K11: 0.925 | L11: 4.5
I12: 0.9 | J12: to | K12: 0.91 | L12: 4.25
H13: 4 Star >=80% to <90% | I13: 0.875 | J13: to | K13: 0.9 | L13: 4
I14: 0.85 | J14: to | K14: 0.875 | L14: 3.75
I15: 0.825 | J15: to | K15: 0.85 | L15: 3.5
C16: Applicable | D16: PI Percentage | I16: 0.8 | J16: to | K16: 0.825 | L16: 3.25
C17: Yes | H17: 3 Star >=70% to <80% | I17: 0.775 | J17: to | K17: 0.8 | L17: 3
I18: 0.75 | J18: to | K18: 0.775 | L18: 2.75
I19: 0.725 | J19: to | K19: 0.75 | L19: 2.5
I20: 0.7 | J20: to | K20: 0.725 | L20: 2.25
H21: 2 Star >=50% to <70% | I21: 0.65 | J21: to | K21: 0.7 | L21: 2
I22: 0.6 | J22: to | K22: 0.65 | L22: 1.75
I23: 0.55 | J23: to | K23: 0.6 | L23: 1.5
I24: 0.5 | J24: to | K24: 0.55 | L24: 1.25
H25: 1 Star <50% | I25: 0.4 | J25: to | K25: 0.5 | L25: 1
I26: 0.3 | J26: to | K26: 0.4 | L26: 0.75
I27: 0.15 | J27: to | K27: 0.3 | L27: 0.5
I28: 0 | J28: to | K28: 0.15 | L28: 0
A31: Progress
X33: Weighting Combinations
H34: PROGRESS GROWTH INDEX AND EFFECT SIZE TO POINTS | X34: Achievement and Progress | Y34: =IF(AND(S49<>"",S50<>""),"Y","N") -> Y
H35: Star Rating | K35: Points | X35: Achievement or Progress | Y35: =IF(AND(S49<>"",S50=""),"Y",IF(AND(S50<>"",S49=""),"Y","N")) -> N
C36: Applicable | D36: Star Rating | H36: 5 | I36: to | K36: 5 | X36: Other Component Count | Y36: =SUM(COUNTIF(C57,"Yes"),COUNTIF(C83,"Yes"),COUNTIF(C111,"Yes"),COUNTIF(C137,"Yes")) -> 4
C37: Yes | H37: 4 | I37: to | K37: 4
H38: 3 | I38: to | K38: 3
H39: 2 | I39: to | K39: 2
H40: 1 | I40: to | K40: 1
A43: Gap Closing
H46: GAP CLOSING PERCENTAGE TO POINTS
H47: Component Rating | I47: Percentage | L47: Points
H48: 5 Star >=60% to 100% | I48: 0.9 | J48: to | K48: 1 | L48: 5 | R48: Component | S48: Total Points | X48: Component | Y48: Weight | AA48: Points
I49: 0.8 | J49: to | K49: 0.9 | L49: 4.75 | R49: Achievement | S49: =IF(AND(D17="",C17="Yes"),0,IF(C17="No","",IF(D17>=I9,"5.00",IF(AND(D17>=I10,D17<K10),"4.75",IF(AND(D17>=I11,D17<K11),"4.50",IF(AND(D17>=I12,D17<K12),"4.25",IF(AND(D17>=I13,D17<K13),"4.00",IF(AND(D17>=I14,D17<K14),"3.75",IF(AND(D17>=I15,D17<K15),"3.50",IF(AND(D17>=I16,D17<K16),"3.25",IF(AND(D17>=I17,D17<K17),"3.00",IF(AND(D17>=I18,D17<K18),"2.75",IF(AND(D17>=I19,D17<K19),"2.50",IF(AND(D17>=I20,D17<K20),"2.25",IF(AND(D17>=I21,D17<K21),"2.00",IF(AND(D17>=I22,D17<K22),"1.75",IF(AND(D17>=I23,D17<K23),"1.50",IF(AND(D17>=I24,D17<K24),"1.25",IF(AND(D17>=I25,D17<K25),"1.00",IF(AND(D17>=I26,D17<K26),"0.75",IF(AND(D17>=I27,D17<K27),"0.50",IF(AND(D17>=I28,D17<K28),"0.00","Error")))))))))))))))))))))) -> 0 | X49: Achievement | Y49: =IF(S49="",0,IF(AND(Y34="Y",S49<>"",Y36=4),0.25,IF(AND(Y34="N",Y35="Y",Y36=4),0.333333,IF(AND(S49<>"",Y34="Y",Y35="N",Y36=3),0.28601,(IF(AND(S49<>"",Y34="Y",Y35="N",Y36=2),0.3333333,IF(AND(S49<>"",Y35="Y",Y36=3),0.4,IF(AND(S49<>"",Y35="Y",Y36=2),0.5,IF(AND(S49<>"",Y35="Y",Y36=1),0.666667,IF(AND(S49<>"",Y35="Y",Y36=0),1,IF(AND(Y34="Y",Y36=0),0.5,IF(AND(Y34="Y",Y36=1),0.4,IF(C17="No",0,"error"))))))))))))) -> 0.25 | AA49: =IF(Y49=0,0,S49*Y49) -> 0
I50: 0.7 | J50: to | K50: 0.8 | L50: 4.5 | R50: Progress | S50: =IF(AND(D37="",C37="Yes"),0,IF(C37="No","",IF(OR(D37=H36,D37="5 Stars"),5,IF(OR(D37=H37,D37="4 Stars"),4,IF(OR(D37=H38,D37="3 Stars"),3,IF(OR(D37=H39,D37="2 Stars"),2,IF(OR(D37=H40,D37="1 Star"),1,0))))))) -> 0 | X50: Progress | Y50: =IF(S50="",0,IF(AND(Y34="Y",S50<>"",Y36=4),0.25,IF(AND(Y34="N",Y35="Y",Y36=4),0.333333,IF(AND(S50<>"",Y34="Y",Y35="N",Y36=3),0.28601,(IF(AND(S50<>"",Y34="Y",Y35="N",Y36=2),0.3333333,IF(AND(S50<>"",Y35="Y",Y36=3),0.4,IF(AND(S50<>"",Y35="Y",Y36=2),0.5,IF(AND(S50<>"",Y35="Y",Y36=1),0.666667,IF(AND(S50<>"",Y35="Y",Y36=0),1,IF(AND(Y34="Y",Y36=0),0.5,IF(AND(Y34="Y",Y36=1),0.4,IF(C37="No",0,"error"))))))))))))) -> 0.25 | AA50: 0
I51: 0.6 | J51: to | K51: 0.7 | L51: 4.25 | R51: Gap Closing | S51: =IF(AND(D57="",C57="Yes"),0,IF(C57="No","",IF(D57>=I48,"5.00",IF(AND(D57>=I49,D57<K49),"4.75",IF(AND(D57>=I50,D57<K50),"4.50",IF(AND(D57>=I51,D57<K51),"4.25",IF(AND(D57>=I52,D57<K52),"4.00",IF(AND(D57>=I53,D57<K53),"3.75",IF(AND(D57>=I54,D57<K54),"3.50",IF(AND(D57>=I55,D57<K55),"3.25",IF(AND(D57>=I56,D57<K56),"3.00",IF(AND(D57>=I57,D57<K57),"2.75",IF(AND(D57>=I58,D57<K58),"2.50",IF(AND(D57>=I59,D57<K59),"2.25",IF(AND(D57>=I60,D57<K60),"2.00",IF(AND(D57>=I61,D57<K61),"1.75",IF(AND(D57>=I62,D57<K62),"1.50",IF(AND(D57>=I63,D57<K63),"1.25",IF(AND(D57>=I64,D57<K64),"1.00",IF(AND(D57>=I65,D57<K65),"0.75",IF(AND(D57>=I66,D57<K66),"0.50",IF(AND(D57>=I67,D57<K67),"0.00","Error")))))))))))))))))))))) -> 0 | X51: Gap Closing | Y51: =IF(AND(S51<>"",Y34="Y",Y36=4),0.125,IF(AND(S51<>"",Y34="Y",Y36=3),0.142667,IF(AND(S51<>"",Y34="Y",Y36=2),0.166667,IF(AND(S51<>"",Y34="Y",Y36=1),0.2,IF(AND(S51<>"",Y35="Y",Y36=4),0.166667,IF(AND(S51<>"",Y35="Y",Y36=3),0.2,IF(AND(S51<>"",Y35="Y",Y36=2),0.25,IF(AND(S51<>"",Y35="Y",Y36=1),0.333333,IF(C57="No",0,IF(AND(Y34="N",Y35="N",S51<>"",Y36=4),0.25,IF(AND(Y34="N",Y35="N",S51<>"",Y36=3),0.333333,IF(AND(Y34="N",Y35="N",S51<>"",Y36=2),0.5,IF(AND(Y34="N",Y35="N",S51<>"",Y36=1),1,"error"))))))))))))) -> 0.125 | AA51: 0
H52: 4 Star >=45% to <60% | I52: 0.5625 | J52: to | K52: 0.6 | L52: 4 | R52: Early Literacy | S52: =IF(AND(D83="",C83="Yes"),0,IF(C83="No","",IF(D83>=I75,"5.00",IF(AND(D83>=I76,D83<K76),"4.75",IF(AND(D83>=I77,D83<K77),"4.50",IF(AND(D83>=I78,D83<K78),"4.25",IF(AND(D83>=I79,D83<K79),"4.00",IF(AND(D83>=I80,D83<K80),"3.75",IF(AND(D83>=I81,D83<K81),"3.50",IF(AND(D83>=I82,D83<K82),"3.25",IF(AND(D83>=I83,D83<K83),"3.00",IF(AND(D83>=I84,D83<K84),"2.75",IF(AND(D83>=I85,D83<K85),"2.50",IF(AND(D83>=I86,D83<K86),"2.25",IF(AND(D83>=I87,D83<K87),"2.00",IF(AND(D83>=I88,D83<K88),"1.75",IF(AND(D83>=I89,D83<K89),"1.50",IF(AND(D83>=I90,D83<K90),"1.25",IF(AND(D83>=I91,D83<K91),"1.00",IF(AND(D83>=I92,D83<K92),"0.75",IF(AND(D83>=I93,D83<K93),"0.50",IF(AND(D83>=I94,D83<K94),"0.00","Error")))))))))))))))))))))) -> 0 | X52: Early Literacy | Y52: =IF(AND(S52<>"",Y34="Y",Y36=4),0.125,IF(AND(S52<>"",Y34="Y",Y36=3),0.142667,IF(AND(S52<>"",Y34="Y",Y36=2),0.166667,IF(AND(S52<>"",Y34="Y",Y36=1),0.2,IF(AND(S52<>"",Y35="Y",Y36=4),0.166667,IF(AND(S52<>"",Y35="Y",Y36=3),0.2,IF(AND(S52<>"",Y35="Y",Y36=2),0.25,IF(AND(S52<>"",Y35="Y",Y36=1),0.333333,IF(C83="No",0,IF(AND(Y34="N",Y35="N",S52<>"",Y36=4),0.25,IF(AND(Y34="N",Y35="N",S52<>"",Y36=3),0.333333,IF(AND(Y34="N",Y35="N",S52<>"",Y36=2),0.5,IF(AND(Y34="N",Y35="N",S52<>"",Y36=1),1,"error"))))))))))))) -> 0.125 | AA52: 0
I53: 0.525 | J53: to | K53: 0.5625 | L53: 3.75 | R53: Graduation | S53: =IF(AND(D111="",C111="Yes"),0,IF(C111="No","",IF(D111>=I102,"5.00",IF(AND(D111>=I103,D111<K103),"4.75",IF(AND(D111>=I104,D111<K104),"4.50",IF(AND(D111>=I105,D111<K105),"4.25",IF(AND(D111>=I106,D111<K106),"4.00",IF(AND(D111>=I107,D111<K107),"3.75",IF(AND(D111>=I108,D111<K108),"3.50",IF(AND(D111>=I109,D111<K109),"3.25",IF(AND(D111>=I110,D111<K110),"3.00",IF(AND(D111>=I111,D111<K11),"2.75",IF(AND(D111>=I112,D111<K112),"2.50",IF(AND(D111>=I113,D111<K113),"2.25",IF(AND(D111>=I114,D111<K114),"2.00",IF(AND(D111>=I115,D111<K115),"1.75",IF(AND(D111>=I116,D111<K116),"1.50",IF(AND(D111>=I117,D111<K117),"1.25",IF(AND(D111>=I118,D111<K118),"1.00",IF(AND(D111>=I119,D111<K119),"0.75",IF(AND(D111>=I120,D111<K120),"0.50",IF(AND(D111>=I121,D111<K121),"0.00","Error")))))))))))))))))))))) -> 0 | X53: Graduation | Y53: =IF(AND(S53<>"",Y34="Y",Y36=4),0.125,IF(AND(S53<>"",Y34="Y",Y36=3),0.142667,IF(AND(S53<>"",Y34="Y",Y36=2),0.166667,IF(AND(S53<>"",Y34="Y",Y36=1),0.2,IF(AND(S53<>"",Y35="Y",Y36=4),0.166667,IF(AND(S53<>"",Y35="Y",Y36=3),0.2,IF(AND(S53<>"",Y35="Y",Y36=2),0.25,IF(AND(S53<>"",Y35="Y",Y36=1),0.333333,IF(C111="No",0,IF(AND(Y34="N",Y35="N",S53<>"",Y36=4),0.25,IF(AND(Y34="N",Y35="N",S53<>"",Y36=3),0.333333,IF(AND(Y34="N",Y35="N",S53<>"",Y36=2),0.5,IF(AND(Y34="N",Y35="N",S53<>"",Y36=1),1,"error"))))))))))))) -> 0.125 | AA53: 0
I54: 0.4875 | J54: to | K54: 0.525 | L54: 3.5 | R54: CCWMR | S54: =IF(AND(D137="",C137="Yes"),0,IF(C137="No","",IF(AND(D137>=I128),L128,IF(AND(D137>=I129,D137<K129),L129,IF(AND(D137>=I130,D137<K130),L130,IF(AND(D137>=I131,D137<K131),L131,IF(AND(D137>=I132,D137<K132),L132,IF(AND(D137>=I133,D137<K133),L133,IF(AND(D137>=I134,D137<K134),L134,IF(AND(D137>=I135,D137<K135),L135,IF(AND(D137>=I136,D137<K136),L136,IF(AND(D137>=I137,D137<K137),L137,IF(AND(D137>=I138,D137<K138),L138,IF(AND(D137>=I139,D137<K139),L139,IF(AND(D137>=I140,D137<K140),L140,IF(AND(D137>=I141,D137<K141),L141,IF(AND(D137>=I142,D137<K142),L142,IF(AND(D137>=I143,D137<K143),L143,IF(AND(D137>=I144,D137<K144),L144,IF(AND(D137>=I145,D137<K145),L145,IF(AND(D137>=I146,D137<K146),L146,IF(AND(D137>=I147,D137<K147),L147,0)))))))))))))))))))))) -> 0 | X54: CCWMR | Y54: =IF(AND(S54<>"",Y34="Y",Y36=4),0.125,IF(AND(S54<>"",Y34="Y",Y36=3),0.142667,IF(AND(S54<>"",Y34="Y",Y36=2),0.166667,IF(AND(S54<>"",Y34="Y",Y36=1),0.2,IF(AND(S54<>"",Y35="Y",Y36=4),0.166667,IF(AND(S54<>"",Y35="Y",Y36=3),0.2,IF(AND(S54<>"",Y35="Y",Y36=2),0.25,IF(AND(S54<>"",Y35="Y",Y36=1),0.333333,IF(C137="No",0,IF(AND(Y34="N",Y35="N",S54<>"",Y36=4),0.25,IF(AND(Y34="N",Y35="N",S54<>"",Y36=3),0.333333,IF(AND(Y34="N",Y35="N",S54<>"",Y36=2),0.5,IF(AND(Y34="N",Y35="N",S54<>"",Y36=1),1,"error"))))))))))))) -> 0.125 | AA54: 0
I55: 0.45 | J55: to | K55: 0.4875 | L55: 3.25 | X55: Total | AA55: =SUM(AA49:AA54) -> 0
C56: Applicable | D56: Percentage | H56: 3 Star >=30% to <45% | I56: 0.4125 | J56: to | K56: 0.45 | L56: 3
C57: Yes | I57: 0.375 | J57: to | K57: 0.4125 | L57: 2.75
D58: . | I58: 0.3375 | J58: to | K58: 0.375 | L58: 2.5
I59: 0.3 | J59: to | K59: 0.3375 | L59: 2.25
H60: 2 Star >=10% to <30% | I60: 0.25 | J60: to | K60: 0.3 | L60: 2
I61: 0.2 | J61: to | K61: 0.25 | L61: 1.75
I62: 0.15 | J62: to | K62: 0.2 | L62: 1.5
I63: 0.1 | J63: to | K63: 0.15 | L63: 1.25
H64: 1 Star <10% | I64: 0.075 | J64: to | K64: 0.1 | L64: 1
I65: 0.05 | J65: to | K65: 0.075 | L65: 0.75
I66: 0.025 | J66: to | K66: 0.05 | L66: 0.5 | X66: Score Range | AA66: Stars
I67: 0 | J67: to | K67: 0.025 | L67: 0 | X67: 4.125 | Y67: to | Z67: 5 | AA67: 5 Stars
X68: 3.625 | Y68: to | Z68: 4.125 | AA68: 4.5 Stars
X69: 3.125 | Y69: to | Z69: 3.625 | AA69: 4 Stars
A70: Early Literacy | X70: 2.625 | Y70: to | Z70: 3.125 | AA70: 3.5 Stars
X71: 2.125 | Y71: to | Z71: 2.625 | AA71: 3 Stars
X72: 1.625 | Y72: to | Z72: 2.125 | AA72: 2.5 Stars
H73: EARLY LITERACY PERCENTAGE TO POINTS | X73: 1.125 | Y73: to | Z73: 1.625 | AA73: 2 Stars
H74: Component Rating | I74: Percentage | L74: Points | X74: 0.563 | Y74: to | Z74: 1.125 | AA74: 1.5 Stars
H75: 5 Star >=88% to 100% | I75: 0.97 | J75: to | K75: 1 | L75: 5 | X75: 0 | Y75: to | Z75: 0.563 | AA75: 1 Star
I76: 0.94 | J76: to | K76: 0.97 | L76: 4.75
I77: 0.91 | J77: to | K77: 0.94 | L77: 4.5
I78: 0.88 | J78: to | K78: 0.91 | L78: 4.25
H79: 4 Star >=78% to <88% | I79: 0.855 | J79: to | K79: 0.88 | L79: 4
I80: 0.83 | J80: to | K80: 0.855 | L80: 3.75 | X80: Overall Rating
I81: 0.805 | J81: to | K81: 0.83 | L81: 3.5
C82: Applicable | D82: Percentage | I82: 0.78 | J82: to | K82: 0.805 | L82: 3.25
C83: Yes | H83: 3 Star >=68% to <78% | I83: 0.755 | J83: to | K83: 0.78 | L83: 3
I84: 0.73 | J84: to | K84: 0.755 | L84: 2.75
I85: 0.705 | J85: to | K85: 0.73 | L85: 2.5 | X85: =IF(AA55>=X67,AA67,IF(AA55>=X68,AA68,IF(AA55>=X69,AA69,IF(AA55>=X70,AA70,IF(AA55>=X71,AA71,IF(AA55>=X72,AA72,IF(AA55>=X73,AA73,IF(AA55>=X74,AA74,IF(AA55>=X75,AA75))))))))) -> 1 Star
I86: 0.68 | J86: to | K86: 0.705 | L86: 2.25
H87: 2 Star >=58% to <68% | I87: 0.655 | J87: to | K87: 0.68 | L87: 2
I88: 0.63 | J88: to | K88: 0.655 | L88: 1.75
I89: 0.605 | J89: to | K89: 0.63 | L89: 1.5
I90: 0.58 | J90: to | K90: 0.605 | L90: 1.25
H91: 1 Star <58% | I91: 0.435 | J91: to | K91: 0.58 | L91: 1
I92: 0.29 | J92: to | K92: 0.435 | L92: 0.75
I93: 0.145 | J93: to | K93: 0.29 | L93: 0.5
I94: 0 | J94: to | K94: 0.145 | L94: 0
A97: Graduation
H100: GRADUATION PERCENTAGE TO POINTS
H101: Component Rating | I101: Percentage | L101: Points
H102: 5 Star >=96.5% to 100% | I102: 0.99125 | J102: to | K102: 1 | L102: 5
I103: 0.9825 | J103: to | K103: 0.99125 | L103: 4.75
I104: 0.97375 | J104: to | K104: 0.9825 | L104: 4.5
I105: 0.965 | J105: to | K105: 0.97375 | L105: 4.25
H106: 4 Star >=93.5% to <96.5% | I106: 0.9575 | J106: to | K106: 0.965 | L106: 4
I107: 0.95 | J107: to | K107: 0.9575 | L107: 3.75
I108: 0.9425 | J108: to | K108: 0.95 | L108: 3.5
C109: Applicable | D109: Weighted Graduation Rate | I109: 0.935 | J109: to | K109: 0.9425 | L109: 3.25
H110: 3 Star >=90% to <93.5% | I110: 0.92625 | J110: to | K110: 0.935 | L110: 3
C111: Yes | I111: 0.9175 | J111: to | K111: 0.92625 | L111: 2.75
I112: 0.90875 | J112: to | K112: 0.9175 | L112: 2.5
I113: 0.9 | J113: to | K113: 0.90875 | L113: 2.25
H114: 2 Star >=84% to <90% | I114: 0.885 | J114: to | K114: 0.9 | L114: 2
I115: 0.87 | J115: to | K115: 0.885 | L115: 1.75
I116: 0.855 | J116: to | K116: 0.87 | L116: 1.5
I117: 0.84 | J117: to | K117: 0.855 | L117: 1.25
H118: 1 Star <84% | I118: 0.63 | J118: to | K118: 0.84 | L118: 1
I119: 0.42 | J119: to | K119: 0.63 | L119: 0.75
I120: 0.21 | J120: to | K120: 0.42 | L120: 0.5
I121: 0 | J121: to | K121: 0.21 | L121: 0
A123: CCWMR
H126: CCWMR PERCENTAGE TO POINTS
H127: Component Rating | I127: Percentage | L127: Points
H128: 5 Star >=85% to 100% | I128: 0.9625 | J128: to | K128: 1 | L128: 5
I129: 0.925 | J129: to | K129: 0.9625 | L129: 4.75
I130: 0.8875 | J130: to | K130: 0.925 | L130: 4.5
I131: 0.85 | J131: to | K131: 0.8875 | L131: 4.25
H132: 4 Star >=75% to <85% | I132: 0.825 | J132: to | K132: 0.85 | L132: 4
I133: 0.8 | J133: to | K133: 0.825 | L133: 3.75
I134: 0.775 | J134: to | K134: 0.8 | L134: 3.5
C135: Applicable | D135: CCWMR Percentage | I135: 0.75 | J135: to | K135: 0.775 | L135: 3.25
H136: 3 Star >=63% to <75% | I136: 0.72 | J136: to | K136: 0.75 | L136: 3
C137: Yes | I137: 0.69 | J137: to | K137: 0.72 | L137: 2.75
I138: 0.66 | J138: to | K138: 0.69 | L138: 2.5
I139: 0.63 | J139: to | K139: 0.66 | L139: 2.25
H140: 2 Star >=53% to <63% | I140: 0.605 | J140: to | K140: 0.63 | L140: 2
I141: 0.58 | J141: to | K141: 0.605 | L141: 1.75
I142: 0.555 | J142: to | K142: 0.58 | L142: 1.5
I143: 0.53 | J143: to | K143: 0.555 | L143: 1.25
H144: 1 Star <53% | I144: 0.3975 | J144: to | K144: 0.53 | L144: 1
I145: 0.265 | J145: to | K145: 0.3975 | L145: 0.75
I146: 0.1325 | J146: to | K146: 0.265 | L146: 0.5
I147: 0 | J147: to | K147: 0.1325 | L147: 0
A151: Technical Document
A152: Report Card Resources
